[Event "Titled Tuesday Blitz November 01 Late 2022"]
[White "Jarocka, Liwia"]
[Black "Aldokhin, Ivan"]
[WhiteFideId "21807558"]
[BlackFideId "24115720"]
[WhiteElo "1989"]
[BlackElo "2313"]
[Result "0-1"]
[Round "02"]
[TimeControl "180+1"]
[Date "2022.11.02"]
[WhiteClock "0:00:01"]
[BlackClock "0:00:03"]

1. e4 {[%clk 0:03:00]}  c5 {[%clk 0:02:59]} 2. Nf3 {[%clk 0:03:00]}  e6 {[%clk 0:03:00]} 3. d4 {[%clk 0:03:01]}  cxd4 {[%clk 0:02:58]} 4. Nxd4 {[%clk 0:03:02]}  a6 {[%clk 0:02:57]} 5. c4 {[%clk 0:03:00]}  Qc7 {[%clk 0:02:58]} 6. Nc3 {[%clk 0:02:59]}  Nf6 {[%clk 0:02:58]} 7. Bd3 {[%clk 0:02:58]}  d6 {[%clk 0:02:59]} 8. O-O {[%clk 0:02:57]}  Nbd7 {[%clk 0:03:00]} 9. Kh1 {[%clk 0:02:58]}  Be7 {[%clk 0:03:00]} 10. f4 {[%clk 0:02:57]}  b6 {[%clk 0:03:00]} 11. Qe2 {[%clk 0:02:56]}  Bb7 {[%clk 0:03:00]} 12. b3 {[%clk 0:02:54]}  O-O {[%clk 0:02:42]} 13. Bb2 {[%clk 0:02:44]}  Rfe8 {[%clk 0:02:37]} 14. Rac1 {[%clk 0:02:43]}  Rac8 {[%clk 0:02:35]} 15. Bb1 {[%clk 0:02:36]}  Qb8 {[%clk 0:02:34]} 16. Nf3 {[%clk 0:02:17]}  Bf8 {[%clk 0:02:27]} 17. e5 {[%clk 0:02:14]}  Bxf3 {[%clk 0:02:24]} 18. Rxf3 {[%clk 0:02:11]}  dxe5 {[%clk 0:02:25]} 19. fxe5 {[%clk 0:02:05]}  Nxe5 {[%clk 0:02:07]} 20. Rxf6 {[%clk 0:01:58]}  gxf6 {[%clk 0:02:06]} 21. Ne4 {[%clk 0:01:58]}  Bg7 {[%clk 0:01:56]} 22. Qh5 {[%clk 0:01:46]}  f5 {[%clk 0:01:52]} 23. Ng5 {[%clk 0:01:45]}  h6 {[%clk 0:01:48]} 24. Bxe5 {[%clk 0:01:35]}  Qxe5 {[%clk 0:01:48]} 25. Qxf7+ {[%clk 0:01:33]}  Kh8 {[%clk 0:01:48]} 26. Qh5 {[%clk 0:00:54]}  Qf4 {[%clk 0:01:42]} 27. Nf7+ {[%clk 0:00:47]}  Kg8 {[%clk 0:01:41]} 28. Rg1 {[%clk 0:00:27]}  Re7 {[%clk 0:01:36]} 29. g3 {[%clk 0:00:19]}  Qd2 {[%clk 0:01:36]} 30. Rd1 {[%clk 0:00:15]}  Qxd1+ {[%clk 0:01:25]} 31. Qxd1 {[%clk 0:00:14]}  Kxf7 {[%clk 0:01:25]} 32. Qh5+ {[%clk 0:00:13]}  Kg8 {[%clk 0:01:21]} 33. Qg6 {[%clk 0:00:13]}  Rd8 {[%clk 0:01:16]} 34. Kg2 {[%clk 0:00:12]}  Rd1 {[%clk 0:01:10]} 35. Bxf5 {[%clk 0:00:09]}  exf5 {[%clk 0:01:06]} 36. Qxf5 {[%clk 0:00:09]}  Rd2+ {[%clk 0:01:05]} 37. Kh3 {[%clk 0:00:09]}  Ree2 {[%clk 0:00:53]} 38. Qc8+ {[%clk 0:00:09]}  Kf7 {[%clk 0:00:51]} 39. Qf5+ {[%clk 0:00:09]}  Ke7 {[%clk 0:00:49]} 40. Kg4 {[%clk 0:00:05]}  Rd4+ {[%clk 0:00:44]} 41. Kh3 {[%clk 0:00:05]}  Re5 {[%clk 0:00:36]} 42. Qc8 {[%clk 0:00:04]}  Rh5+ {[%clk 0:00:30]} 43. Kg2 {[%clk 0:00:04]}  Rd7 {[%clk 0:00:18]} 44. Qg8 {[%clk 0:00:02]}  Rg5 {[%clk 0:00:16]} 45. Qc8 {[%clk 0:00:02]}  Bd4 {[%clk 0:00:15]} 46. h4 {[%clk 0:00:03]}  Rg7 {[%clk 0:00:12]} 47. Qxa6 {[%clk 0:00:03]}  Be5 {[%clk 0:00:08]} 48. Qxb6 {[%clk 0:00:03]}  Rxg3+ {[%clk 0:00:07]} 49. Kf1 {[%clk 0:00:03]}  Rf3+ {[%clk 0:00:05]} 50. Ke2 {[%clk 0:00:04]}  Rf6 {[%clk 0:00:05]} 51. Qc5+ {[%clk 0:00:03]}  Bd6 {[%clk 0:00:05]} 52. Qd5 {[%clk 0:00:03]}  Re6+ {[%clk 0:00:06]} 53. Kf1 {[%clk 0:00:02]}  Bb4 {[%clk 0:00:04]} 54. Qa8 {[%clk 0:00:01]}  Rd1+ {[%clk 0:00:04]} 55. Kg2 {[%clk 0:00:01]}  Rd2+ {[%clk 0:00:04]} 56. Kf3 {[%clk 0:00:01]}  Rd3+ {[%clk 0:00:05]} 57. Kf2 {[%clk 0:00:02]}  Bc5+ {[%clk 0:00:04]} 58. Kf1 {[%clk 0:00:02]}  Rd7 {[%clk 0:00:03]} 59. Qg2 {[%clk 0:00:01]}  Rf6+ {[%clk 0:00:03]} 0-1


[Site "https://www.chess.com"]

[Event "Titled Tuesday Blitz November 01 Late 2022"]
[White "Jimenez Fernandez, Rebeca"]
[Black "Makaraci, Tunahan"]
[WhiteFideId "32070934"]
[BlackFideId "6356559"]
[WhiteElo "1946"]
[BlackElo "2175"]
[Result "0-1"]
[Round "02"]
[TimeControl "180+1"]
[Date "2022.11.02"]
[WhiteClock "0:00:02"]
[BlackClock "0:00:04"]

1. e4 {[%clk 0:03:00]}  e5 {[%clk 0:02:59]} 2. d4 {[%clk 0:03:00]}  exd4 {[%clk 0:02:58]} 3. Qxd4 {[%clk 0:03:00]}  Nc6 {[%clk 0:02:57]} 4. Qe3 {[%clk 0:03:00]}  Nf6 {[%clk 0:02:52]} 5. Nc3 {[%clk 0:02:59]}  Bb4 {[%clk 0:02:52]} 6. Bd2 {[%clk 0:02:57]}  O-O {[%clk 0:02:52]} 7. O-O-O {[%clk 0:02:56]}  d6 {[%clk 0:02:48]} 8. h3 {[%clk 0:02:54]}  Be6 {[%clk 0:02:47]} 9. f4 {[%clk 0:02:54]}  a5 {[%clk 0:02:41]} 10. a3 {[%clk 0:02:51]}  Bc5 {[%clk 0:02:40]} 11. Qe1 {[%clk 0:02:39]}  Re8 {[%clk 0:02:35]} 12. Nf3 {[%clk 0:02:36]}  Nd4 {[%clk 0:02:31]} 13. Ng5 {[%clk 0:02:29]}  h6 {[%clk 0:02:19]} 14. Nxe6 {[%clk 0:02:04]}  Rxe6 {[%clk 0:02:19]} 15. g4 {[%clk 0:02:03]}  Nf3 {[%clk 0:02:06]} 16. Qe2 {[%clk 0:01:52]}  Nxd2 {[%clk 0:02:05]} 17. Rxd2 {[%clk 0:01:49]}  c6 {[%clk 0:01:24]} 18. h4 {[%clk 0:01:47]}  b5 {[%clk 0:01:20]} 19. g5 {[%clk 0:01:43]}  Nh7 {[%clk 0:01:20]} 20. f5 {[%clk 0:01:40]}  Re5 {[%clk 0:01:14]} 21. gxh6 {[%clk 0:01:37]}  gxh6 {[%clk 0:01:12]} 22. Qh5 {[%clk 0:01:31]}  Qf6 {[%clk 0:01:10]} 23. Rh3 {[%clk 0:00:49]}  b4 {[%clk 0:01:06]} 24. Rg3+ {[%clk 0:00:46]}  Kh8 {[%clk 0:01:06]} 25. axb4 {[%clk 0:00:23]}  axb4 {[%clk 0:01:05]} 26. Nb1 {[%clk 0:00:21]}  Rxe4 {[%clk 0:00:48]} 27. Bd3 {[%clk 0:00:04]}  Re1+ {[%clk 0:00:45]} 28. Rd1 {[%clk 0:00:05]}  Be3+ {[%clk 0:00:44]} 29. Rxe3 {[%clk 0:00:05]}  Rxe3 {[%clk 0:00:44]} 30. Rg1 {[%clk 0:00:05]}  Ra2 {[%clk 0:00:40]} 31. Qg4 {[%clk 0:00:04]}  Ra8 {[%clk 0:00:23]} 32. Kd2 {[%clk 0:00:05]}  Re5 {[%clk 0:00:19]} 33. Bc4 {[%clk 0:00:04]}  d5 {[%clk 0:00:18]} 34. Bd3 {[%clk 0:00:03]}  c5 {[%clk 0:00:13]} 35. c4 {[%clk 0:00:02]}  dxc4 {[%clk 0:00:12]} 36. Bxc4 {[%clk 0:00:02]}  Rd8+ {[%clk 0:00:12]} 37. Kc2 {[%clk 0:00:02]}  Re7 {[%clk 0:00:06]} 38. Nd2 {[%clk 0:00:02]}  Red7 {[%clk 0:00:04]} 0-1


[Site "https://www.chess.com"]

[Event "Titled Tuesday Blitz November 01 Late 2022"]
[White "Kamsky, Gata"]
[Black "Issani, Nameer"]
[WhiteFideId "2000024"]
[BlackFideId "2619130"]
[WhiteElo "2666"]
[BlackElo "2631"]
[Result "1/2-1/2"]
[Round "02"]
[TimeControl "180+1"]
[Date "2022.11.01"]
[WhiteClock "0:00:46"]
[BlackClock "0:01:34"]

1. e4 {[%clk 0:03:00]}  e5 {[%clk 0:03:00]} 2. Nf3 {[%clk 0:03:00]}  Nc6 {[%clk 0:03:00]} 3. Bb5 {[%clk 0:02:59]}  a6 {[%clk 0:03:01]} 4. Ba4 {[%clk 0:02:59]}  Nf6 {[%clk 0:03:01]} 5. O-O {[%clk 0:02:59]}  b5 {[%clk 0:03:02]} 6. Bb3 {[%clk 0:02:58]}  Be7 {[%clk 0:03:02]} 7. Re1 {[%clk 0:02:55]}  O-O {[%clk 0:03:03]} 8. c3 {[%clk 0:02:55]}  d6 {[%clk 0:03:03]} 9. d4 {[%clk 0:02:56]}  Bg4 {[%clk 0:03:02]} 10. d5 {[%clk 0:02:55]}  Nb8 {[%clk 0:03:03]} 11. Nbd2 {[%clk 0:02:53]}  Nbd7 {[%clk 0:03:03]} 12. h3 {[%clk 0:02:52]}  Bh5 {[%clk 0:03:03]} 13. Nf1 {[%clk 0:02:51]}  Nc5 {[%clk 0:02:57]} 14. Bc2 {[%clk 0:02:50]}  Bg6 {[%clk 0:02:57]} 15. Ng3 {[%clk 0:02:49]}  Qd7 {[%clk 0:02:57]} 16. b3 {[%clk 0:02:30]}  c6 {[%clk 0:02:57]} 17. c4 {[%clk 0:02:30]}  bxc4 {[%clk 0:02:54]} 18. bxc4 {[%clk 0:02:30]}  cxd5 {[%clk 0:02:54]} 19. cxd5 {[%clk 0:02:29]}  Rac8 {[%clk 0:02:55]} 20. Bd2 {[%clk 0:02:27]}  Ne8 {[%clk 0:02:50]} 21. Be3 {[%clk 0:02:09]}  f6 {[%clk 0:02:38]} 22. Nh4 {[%clk 0:02:06]}  Bf7 {[%clk 0:02:38]} 23. Nhf5 {[%clk 0:02:01]}  g6 {[%clk 0:02:35]} 24. Nh6+ {[%clk 0:02:00]}  Kg7 {[%clk 0:02:36]} 25. Nxf7 {[%clk 0:02:00]}  Rxf7 {[%clk 0:02:35]} 26. Qg4 {[%clk 0:01:58]}  Qxg4 {[%clk 0:02:32]} 27. hxg4 {[%clk 0:01:58]}  Nc7 {[%clk 0:02:29]} 28. a4 {[%clk 0:01:56]}  Na8 {[%clk 0:02:24]} 29. Rab1 {[%clk 0:01:54]}  Bd8 {[%clk 0:02:24]} 30. Bxc5 {[%clk 0:01:40]}  Rxc5 {[%clk 0:02:23]} 31. Bd3 {[%clk 0:01:40]}  Nb6 {[%clk 0:02:20]} 32. Bxa6 {[%clk 0:01:38]}  Nxa4 {[%clk 0:02:20]} 33. Ne2 {[%clk 0:01:31]}  Ra7 {[%clk 0:02:17]} 34. Bb5 {[%clk 0:01:28]}  Ba5 {[%clk 0:02:08]} 35. Rec1 {[%clk 0:01:24]}  Nc3 {[%clk 0:02:09]} 36. Nxc3 {[%clk 0:01:23]}  Bxc3 {[%clk 0:02:09]} 37. Bc6 {[%clk 0:01:03]}  Bd4 {[%clk 0:02:06]} 38. Rxc5 {[%clk 0:01:02]}  Bxc5 {[%clk 0:02:07]} 39. Rb7+ {[%clk 0:00:59]}  Rxb7 {[%clk 0:02:04]} 40. Bxb7 {[%clk 0:00:59]}  Kh6 {[%clk 0:02:04]} 41. g3 {[%clk 0:00:59]}  Kg5 {[%clk 0:02:03]} 42. Bc8 {[%clk 0:01:00]}  Kh6 {[%clk 0:01:59]} 43. Kg2 {[%clk 0:00:59]}  Kg5 {[%clk 0:01:59]} 44. f3 {[%clk 0:00:58]}  Bd4 {[%clk 0:01:59]} 45. Be6 {[%clk 0:00:58]}  Be3 {[%clk 0:01:58]} 46. Bg8 {[%clk 0:00:57]}  h5 {[%clk 0:01:56]} 47. gxh5 {[%clk 0:00:56]}  gxh5 {[%clk 0:01:56]} 48. Kh3 {[%clk 0:00:55]}  Bf2 {[%clk 0:01:54]} 49. Bf7 {[%clk 0:00:54]}  h4 {[%clk 0:01:54]} 50. gxh4+ {[%clk 0:00:53]}  Bxh4 {[%clk 0:01:54]} 51. Be6 {[%clk 0:00:52]}  Be1 {[%clk 0:01:52]} 52. Bg4 {[%clk 0:00:52]}  Kf4 {[%clk 0:01:52]} 53. Kg2 {[%clk 0:00:52]}  Bc3 {[%clk 0:01:52]} 54. Kf2 {[%clk 0:00:52]}  Bd4+ {[%clk 0:01:53]} 55. Ke2 {[%clk 0:00:52]}  Be3 {[%clk 0:01:53]} 56. Kd3 {[%clk 0:00:52]}  Bc5 {[%clk 0:01:54]} 57. Kc4 {[%clk 0:00:52]}  Ke3 {[%clk 0:01:55]} 58. Kb5 {[%clk 0:00:52]}  Kf4 {[%clk 0:01:55]} 59. Kc6 {[%clk 0:00:52]}  Ke3 {[%clk 0:01:54]} 60. Kd7 {[%clk 0:00:52]}  Kf4 {[%clk 0:01:54]} 61. Ke6 {[%clk 0:00:53]}  Kg5 {[%clk 0:01:51]} 62. Bf5 {[%clk 0:00:51]}  Bb4 {[%clk 0:01:51]} 63. Ke7 {[%clk 0:00:50]}  Ba3 {[%clk 0:01:49]} 64. Kd7 {[%clk 0:00:49]}  Bb4 {[%clk 0:01:49]} 65. Ke6 {[%clk 0:00:48]}  Bc5 {[%clk 0:01:49]} 66. Bg4 {[%clk 0:00:47]}  Bb4 {[%clk 0:01:33]} 67. Bf5 {[%clk 0:00:46]}  Bc5 {[%clk 0:01:34]} 68. Bg4 {[%clk 0:00:46]}  Bb4 {[%clk 0:01:34]} 69. Bf5 {[%clk 0:00:46]} 1/2-1/2


[Site "https://www.chess.com"]

[Event "Titled Tuesday Blitz November 01 Late 2022"]
[White "Kanyamarala, Tarun"]
[Black "Gireman, Ja"]
[WhiteFideId "45004714"]
[BlackFideId "5043794"]
[WhiteElo "2307"]
[BlackElo "2153"]
[Result "0-1"]
[Round "02"]
[TimeControl "180+1"]
[Date "2022.11.02"]
[WhiteClock "0:00:05"]
[BlackClock "0:00:23"]

1. d4 {[%clk 0:03:00]}  Nf6 {[%clk 0:02:56]} 2. Nc3 {[%clk 0:03:01]}  d5 {[%clk 0:02:54]} 3. Bf4 {[%clk 0:03:02]}  c5 {[%clk 0:02:53]} 4. e3 {[%clk 0:03:01]}  Nc6 {[%clk 0:02:53]} 5. Nb5 {[%clk 0:03:00]}  e5 {[%clk 0:02:27]} 6. dxe5 {[%clk 0:03:00]}  Ng4 {[%clk 0:02:07]} 7. e6 {[%clk 0:02:53]}  Nge5 {[%clk 0:01:58]} 8. Nf3 {[%clk 0:02:46]}  f6 {[%clk 0:01:34]} 9. Qxd5 {[%clk 0:02:33]}  Qxd5 {[%clk 0:01:24]} 10. Nc7+ {[%clk 0:02:32]}  Kd8 {[%clk 0:01:24]} 11. Nxd5 {[%clk 0:02:33]}  Bxe6 {[%clk 0:01:25]} 12. O-O-O {[%clk 0:02:29]}  Kc8 {[%clk 0:01:23]} 13. Bb5 {[%clk 0:02:04]}  Bxd5 {[%clk 0:01:15]} 14. Rxd5 {[%clk 0:02:03]}  Nb4 {[%clk 0:01:15]} 15. Rd2 {[%clk 0:01:56]}  a6 {[%clk 0:01:14]} 16. Be2 {[%clk 0:01:43]}  Ng6 {[%clk 0:00:47]} 17. Bg3 {[%clk 0:01:26]}  Be7 {[%clk 0:00:40]} 18. a3 {[%clk 0:01:25]}  Nc6 {[%clk 0:00:39]} 19. Rhd1 {[%clk 0:01:24]}  Rd8 {[%clk 0:00:39]} 20. Nh4 {[%clk 0:01:21]}  Nxh4 {[%clk 0:00:31]} 21. Rxd8+ {[%clk 0:01:17]}  Bxd8 {[%clk 0:00:30]} 22. Bxh4 {[%clk 0:01:17]}  Bc7 {[%clk 0:00:26]} 23. Bg4+ {[%clk 0:01:14]}  Kb8 {[%clk 0:00:26]} 24. Rd7 {[%clk 0:01:14]}  g5 {[%clk 0:00:26]} 25. Bg3 {[%clk 0:00:54]}  Bxg3 {[%clk 0:00:26]} 26. hxg3 {[%clk 0:00:52]}  Ne5 {[%clk 0:00:27]} 27. Rd8+ {[%clk 0:00:51]}  Ka7 {[%clk 0:00:27]} 28. Rxa8+ {[%clk 0:00:50]}  Kxa8 {[%clk 0:00:28]} 29. Bf5 {[%clk 0:00:47]}  h6 {[%clk 0:00:27]} 30. b3 {[%clk 0:00:38]}  Kb8 {[%clk 0:00:28]} 31. f4 {[%clk 0:00:37]}  Nf7 {[%clk 0:00:28]} 32. Kd2 {[%clk 0:00:35]}  Kc7 {[%clk 0:00:29]} 33. Kd3 {[%clk 0:00:33]}  Nd6 {[%clk 0:00:29]} 34. Be6 {[%clk 0:00:30]}  Kc6 {[%clk 0:00:28]} 35. e4 {[%clk 0:00:28]}  Nb5 {[%clk 0:00:28]} 36. Bd5+ {[%clk 0:00:15]}  Kc7 {[%clk 0:00:28]} 37. a4 {[%clk 0:00:14]}  Na7 {[%clk 0:00:28]} 38. e5 {[%clk 0:00:14]}  fxe5 {[%clk 0:00:27]} 39. fxe5 {[%clk 0:00:14]}  Nc8 {[%clk 0:00:27]} 40. Ke4 {[%clk 0:00:14]}  Ne7 {[%clk 0:00:28]} 41. Bc4 {[%clk 0:00:12]}  Kc6 {[%clk 0:00:27]} 42. Bf7 {[%clk 0:00:07]}  b5 {[%clk 0:00:27]} 43. Be8+ {[%clk 0:00:06]}  Kb6 {[%clk 0:00:27]} 44. axb5 {[%clk 0:00:06]}  axb5 {[%clk 0:00:28]} 45. e6 {[%clk 0:00:05]}  b4 {[%clk 0:00:23]} 46. Ke5 {[%clk 0:00:06]}  Kc7 {[%clk 0:00:24]} 47. Kf6 {[%clk 0:00:05]}  Kd6 {[%clk 0:00:24]} 48. Bd7 {[%clk 0:00:04]}  Nd5+ {[%clk 0:00:22]} 49. Kf7 {[%clk 0:00:04]}  Nc7 {[%clk 0:00:22]} 50. Bc8 {[%clk 0:00:01]}  Nd5 {[%clk 0:00:22]} 51. Kg6 {[%clk 0:00:01]}  Ne7+ {[%clk 0:00:19]} 52. Kxh6 {[%clk 0:00:01]}  Nxc8 {[%clk 0:00:20]} 53. Kxg5 {[%clk 0:00:02]}  Kxe6 {[%clk 0:00:20]} 54. Kf4 {[%clk 0:00:02]}  Kd5 {[%clk 0:00:20]} 55. g4 {[%clk 0:00:02]}  Ne7 {[%clk 0:00:17]} 56. Kg5 {[%clk 0:00:02]}  Kd4 {[%clk 0:00:18]} 57. Kf6 {[%clk 0:00:02]}  Nd5+ {[%clk 0:00:19]} 58. Kf7 {[%clk 0:00:03]}  Ne3 {[%clk 0:00:18]} 59. g5 {[%clk 0:00:03]}  Ng4 {[%clk 0:00:18]} 60. g6 {[%clk 0:00:03]}  Ne5+ {[%clk 0:00:16]} 61. Kf6 {[%clk 0:00:04]}  Nxg6 {[%clk 0:00:17]} 62. Kxg6 {[%clk 0:00:04]}  Kc3 {[%clk 0:00:18]} 63. Kf5 {[%clk 0:00:04]}  Kxc2 {[%clk 0:00:19]} 64. g4 {[%clk 0:00:05]}  c4 {[%clk 0:00:19]} 65. bxc4 {[%clk 0:00:03]}  b3 {[%clk 0:00:20]} 66. g5 {[%clk 0:00:03]}  b2 {[%clk 0:00:21]} 67. g6 {[%clk 0:00:04]}  b1=Q {[%clk 0:00:22]} 68. g7 {[%clk 0:00:05]}  Qb8 {[%clk 0:00:22]} 69. Kg6 {[%clk 0:00:04]}  Qg8 {[%clk 0:00:23]} 70. c5 {[%clk 0:00:05]}  Kd3 {[%clk 0:00:23]} 71. c6 {[%clk 0:00:05]}  Ke4 {[%clk 0:00:24]} 72. c7 {[%clk 0:00:05]}  Ke5 {[%clk 0:00:23]} 73. c8=Q {[%clk 0:00:05]}  Qxc8 {[%clk 0:00:23]} 74. Kh7 {[%clk 0:00:06]}  Kf6 {[%clk 0:00:23]} 75. g8=Q {[%clk 0:00:05]}  Qh3# {[%clk 0:00:23]} 0-1


[Site "https://www.chess.com"]

[Event "Titled Tuesday Blitz November 01 Late 2022"]
[White "Kekic, Armin"]
[Black "Ernst, Sipke"]
[WhiteFideId "14401274"]
[BlackFideId "1004689"]
[WhiteElo "2132"]
[BlackElo "2438"]
[Result "0-1"]
[Round "02"]
[TimeControl "180+1"]
[Date "2022.11.02"]
[WhiteClock "0:00:16"]
[BlackClock "0:00:13"]

1. e4 {[%clk 0:03:00]}  c5 {[%clk 0:02:57]} 2. c3 {[%clk 0:03:00]}  b6 {[%clk 0:02:56]} 3. d4 {[%clk 0:03:00]}  Bb7 {[%clk 0:02:57]} 4. Bd3 {[%clk 0:02:59]}  e6 {[%clk 0:02:57]} 5. Nf3 {[%clk 0:02:59]}  Nf6 {[%clk 0:02:57]} 6. Qe2 {[%clk 0:02:58]}  Be7 {[%clk 0:02:53]} 7. O-O {[%clk 0:02:57]}  cxd4 {[%clk 0:02:50]} 8. cxd4 {[%clk 0:02:57]}  Nc6 {[%clk 0:02:50]} 9. Nc3 {[%clk 0:02:53]}  Nb4 {[%clk 0:02:49]} 10. Bb5 {[%clk 0:01:59]}  a6 {[%clk 0:02:48]} 11. Ba4 {[%clk 0:01:59]}  b5 {[%clk 0:02:48]} 12. Bb3 {[%clk 0:01:59]}  d5 {[%clk 0:02:38]} 13. e5 {[%clk 0:01:54]}  Ne4 {[%clk 0:02:38]} 14. Be3 {[%clk 0:01:52]}  O-O {[%clk 0:02:31]} 15. Rfc1 {[%clk 0:01:51]}  Rc8 {[%clk 0:02:29]} 16. Nd2 {[%clk 0:01:45]}  Nxc3 {[%clk 0:02:15]} 17. bxc3 {[%clk 0:01:42]}  Nc6 {[%clk 0:02:15]} 18. f4 {[%clk 0:01:41]}  Ba3 {[%clk 0:02:10]} 19. Rc2 {[%clk 0:01:33]}  f5 {[%clk 0:02:03]} 20. exf6 {[%clk 0:01:31]}  Qxf6 {[%clk 0:02:02]} 21. g3 {[%clk 0:01:31]}  Rc7 {[%clk 0:01:47]} 22. Nf3 {[%clk 0:01:31]}  Rfc8 {[%clk 0:01:46]} 23. Bf2 {[%clk 0:01:08]}  Nd8 {[%clk 0:01:37]} 24. Qd3 {[%clk 0:01:07]}  Nf7 {[%clk 0:01:29]} 25. Re1 {[%clk 0:01:02]}  Rc6 {[%clk 0:01:08]} 26. h4 {[%clk 0:00:57]}  R8c7 {[%clk 0:01:07]} 27. Ng5 {[%clk 0:00:55]}  Nxg5 {[%clk 0:01:02]} 28. hxg5 {[%clk 0:00:56]}  Qg6 {[%clk 0:00:58]} 29. Qf3 {[%clk 0:00:40]}  b4 {[%clk 0:00:58]} 30. Rce2 {[%clk 0:00:38]}  bxc3 {[%clk 0:00:44]} 31. Bxd5 {[%clk 0:00:38]}  exd5 {[%clk 0:00:44]} 32. Qxd5+ {[%clk 0:00:38]}  Re6 {[%clk 0:00:22]} 33. Qd8+ {[%clk 0:00:22]}  Qe8 {[%clk 0:00:13]} 34. Qxe8+ {[%clk 0:00:19]}  Rxe8 {[%clk 0:00:14]} 35. Rxe8+ {[%clk 0:00:18]}  Kf7 {[%clk 0:00:14]} 36. R8e5 {[%clk 0:00:14]}  c2 {[%clk 0:00:14]} 37. Be3 {[%clk 0:00:15]}  c1=Q {[%clk 0:00:13]} 38. Bxc1 {[%clk 0:00:15]}  Bxc1 {[%clk 0:00:13]} 39. Kf2 {[%clk 0:00:15]}  Bb2 {[%clk 0:00:13]} 40. R1e2 {[%clk 0:00:15]}  Bxd4+ {[%clk 0:00:12]} 41. Ke1 {[%clk 0:00:15]}  Bxe5 {[%clk 0:00:13]} 42. Rxe5 {[%clk 0:00:16]}  Re7 {[%clk 0:00:13]} 43. Rxe7+ {[%clk 0:00:16]}  Kxe7 {[%clk 0:00:13]} 44. Kd2 {[%clk 0:00:16]}  Ke6 {[%clk 0:00:13]} 0-1


[Site "https://www.chess.com"]

[Event "Titled Tuesday Blitz November 01 Late 2022"]
[White "Kleiman, Jake"]
[Black "Krzywda, Andrzej"]
[WhiteFideId "2020041"]
[BlackFideId "1114565"]
[WhiteElo "2592"]
[BlackElo "2149"]
[Result "1-0"]
[Round "02"]
[TimeControl "180+1"]
[Date "2022.11.02"]
[WhiteClock "0:00:15"]
[BlackClock "0:00:06"]

1. e4 {[%clk 0:03:00]}  c5 {[%clk 0:03:00]} 2. c3 {[%clk 0:03:01]}  Nf6 {[%clk 0:02:59]} 3. e5 {[%clk 0:03:01]}  Nd5 {[%clk 0:02:59]} 4. Bc4 {[%clk 0:03:02]}  Nb6 {[%clk 0:02:57]} 5. Bb3 {[%clk 0:03:02]}  Nc6 {[%clk 0:02:54]} 6. Nf3 {[%clk 0:03:03]}  d6 {[%clk 0:02:54]} 7. exd6 {[%clk 0:03:04]}  Qxd6 {[%clk 0:02:54]} 8. Qe2 {[%clk 0:03:04]}  e6 {[%clk 0:02:50]} 9. O-O {[%clk 0:03:05]}  Be7 {[%clk 0:02:49]} 10. Na3 {[%clk 0:03:05]}  a6 {[%clk 0:02:48]} 11. Nc2 {[%clk 0:03:03]}  O-O {[%clk 0:02:47]} 12. d4 {[%clk 0:03:03]}  cxd4 {[%clk 0:02:45]} 13. Ncxd4 {[%clk 0:03:01]}  Bd7 {[%clk 0:02:42]} 14. Rd1 {[%clk 0:03:00]}  Qc7 {[%clk 0:02:38]} 15. h3 {[%clk 0:02:43]}  Rfe8 {[%clk 0:02:37]} 16. Be3 {[%clk 0:02:42]}  Bf6 {[%clk 0:02:32]} 17. Rac1 {[%clk 0:02:40]}  e5 {[%clk 0:02:25]} 18. Nxc6 {[%clk 0:02:24]}  Bxc6 {[%clk 0:02:26]} 19. Ng5 {[%clk 0:02:23]}  Bxg5 {[%clk 0:02:12]} 20. Bxg5 {[%clk 0:02:23]}  h6 {[%clk 0:02:12]} 21. Bh4 {[%clk 0:02:15]}  Nd7 {[%clk 0:01:54]} 22. Qc4 {[%clk 0:01:53]}  Nf8 {[%clk 0:01:47]} 23. Qg4 {[%clk 0:01:47]}  Bd7 {[%clk 0:01:30]} 24. Qg3 {[%clk 0:01:36]}  Be6 {[%clk 0:01:29]} 25. Bf6 {[%clk 0:01:36]}  Ng6 {[%clk 0:01:25]} 26. Bh4 {[%clk 0:01:09]}  Rac8 {[%clk 0:01:15]} 27. Bc2 {[%clk 0:01:02]}  Nxh4 {[%clk 0:01:09]} 28. Qxh4 {[%clk 0:01:03]}  Rcd8 {[%clk 0:00:53]} 29. a3 {[%clk 0:00:54]}  Rd7 {[%clk 0:00:34]} 30. Rxd7 {[%clk 0:00:41]}  Bxd7 {[%clk 0:00:34]} 31. Rd1 {[%clk 0:00:39]}  Bc6 {[%clk 0:00:34]} 32. Bf5 {[%clk 0:00:28]}  e4 {[%clk 0:00:27]} 33. Rd4 {[%clk 0:00:23]}  Qe5 {[%clk 0:00:27]} 34. Bg4 {[%clk 0:00:14]}  e3 {[%clk 0:00:25]} 35. fxe3 {[%clk 0:00:15]}  Qxe3+ {[%clk 0:00:25]} 36. Kh2 {[%clk 0:00:16]}  Qe5+ {[%clk 0:00:25]} 37. Qg3 {[%clk 0:00:16]}  f5 {[%clk 0:00:19]} 38. Bh5 {[%clk 0:00:11]}  Qxg3+ {[%clk 0:00:15]} 39. Kxg3 {[%clk 0:00:12]}  Rf8 {[%clk 0:00:13]} 40. Kf4 {[%clk 0:00:11]}  g5+ {[%clk 0:00:11]} 41. Ke5 {[%clk 0:00:11]}  Kg7 {[%clk 0:00:12]} 42. g3 {[%clk 0:00:11]}  a5 {[%clk 0:00:07]} 43. h4 {[%clk 0:00:11]}  f4 {[%clk 0:00:05]} 44. gxf4 {[%clk 0:00:11]}  gxh4 {[%clk 0:00:06]} 45. f5 {[%clk 0:00:10]}  h3 {[%clk 0:00:06]} 46. Rg4+ {[%clk 0:00:10]}  Kh8 {[%clk 0:00:06]} 47. Rh4 {[%clk 0:00:10]}  Bg2 {[%clk 0:00:05]} 48. f6 {[%clk 0:00:10]}  Kg8 {[%clk 0:00:02]} 49. Bg6 {[%clk 0:00:10]}  Rc8 {[%clk 0:00:01]} 50. Rxh6 {[%clk 0:00:09]}  Rc5+ {[%clk 0:00:02]} 51. Kf4 {[%clk 0:00:09]}  Rd5 {[%clk 0:00:02]} 52. f7+ {[%clk 0:00:09]}  Kg7 {[%clk 0:00:02]} 53. Rh7+ {[%clk 0:00:09]}  Kxg6 {[%clk 0:00:03]} 54. f8=Q {[%clk 0:00:09]}  Kxh7 {[%clk 0:00:02]} 55. Qf7+ {[%clk 0:00:09]}  Kh8 {[%clk 0:00:02]} 56. Kg3 {[%clk 0:00:08]}  Rd3+ {[%clk 0:00:02]} 57. Kh2 {[%clk 0:00:08]}  Rf3 {[%clk 0:00:02]} 58. Qh5+ {[%clk 0:00:07]}  Kg7 {[%clk 0:00:02]} 59. Qg5+ {[%clk 0:00:08]}  Kf7 {[%clk 0:00:03]} 60. Qd5+ {[%clk 0:00:07]}  Ke7 {[%clk 0:00:03]} 61. Qxb7+ {[%clk 0:00:08]}  Kf6 {[%clk 0:00:03]} 62. Qc6+ {[%clk 0:00:08]}  Kf7 {[%clk 0:00:03]} 63. Qc5 {[%clk 0:00:08]}  Kf6 {[%clk 0:00:03]} 64. Qb6+ {[%clk 0:00:08]}  Kf7 {[%clk 0:00:03]} 65. Qxa5 {[%clk 0:00:09]}  Rf1 {[%clk 0:00:03]} 66. Qc7+ {[%clk 0:00:09]}  Kf6 {[%clk 0:00:03]} 67. Qb6+ {[%clk 0:00:09]}  Kf7 {[%clk 0:00:04]} 68. Qa7+ {[%clk 0:00:08]}  Kf6 {[%clk 0:00:04]} 69. Qe3 {[%clk 0:00:09]}  Rh1+ {[%clk 0:00:04]} 70. Kg3 {[%clk 0:00:09]}  Rf1 {[%clk 0:00:04]} 71. Qh6+ {[%clk 0:00:10]}  Ke7 {[%clk 0:00:04]} 72. Qg7+ {[%clk 0:00:09]}  Ke8 {[%clk 0:00:03]} 73. c4 {[%clk 0:00:09]}  Rf3+ {[%clk 0:00:03]} 74. Kh2 {[%clk 0:00:09]}  Rf1 {[%clk 0:00:04]} 75. c5 {[%clk 0:00:09]}  Rh1+ {[%clk 0:00:04]} 76. Kg3 {[%clk 0:00:10]}  Rg1 {[%clk 0:00:03]} 77. Qh8+ {[%clk 0:00:10]}  Kf7 {[%clk 0:00:03]} 78. Kf2 {[%clk 0:00:09]}  Rf1+ {[%clk 0:00:02]} 79. Ke2 {[%clk 0:00:10]}  Rh1 {[%clk 0:00:01]} 80. b4 {[%clk 0:00:09]}  h2 {[%clk 0:00:01]} 81. Qh7+ {[%clk 0:00:08]}  Kf8 {[%clk 0:00:02]} 82. Qh6+ {[%clk 0:00:08]}  Kg8 {[%clk 0:00:02]} 83. Qg5+ {[%clk 0:00:08]}  Kf7 {[%clk 0:00:02]} 84. Qxg2 {[%clk 0:00:09]}  Ra1 {[%clk 0:00:02]} 85. Qd5+ {[%clk 0:00:09]}  Ke8 {[%clk 0:00:02]} 86. Qe5+ {[%clk 0:00:09]}  Kd7 {[%clk 0:00:02]} 87. Qxa1 {[%clk 0:00:10]}  Kc6 {[%clk 0:00:02]} 88. Qh1+ {[%clk 0:00:11]}  Kb5 {[%clk 0:00:02]} 89. Qxh2 {[%clk 0:00:12]}  Kc4 {[%clk 0:00:03]} 90. Qd6 {[%clk 0:00:12]}  Kb5 {[%clk 0:00:03]} 91. c6 {[%clk 0:00:13]}  Kb6 {[%clk 0:00:04]} 92. c7+ {[%clk 0:00:14]}  Kb7 {[%clk 0:00:05]} 93. Qc5 {[%clk 0:00:14]}  Kc8 {[%clk 0:00:05]} 94. b5 {[%clk 0:00:14]}  Kb7 {[%clk 0:00:06]} 95. c8=Q# {[%clk 0:00:15]} 1-0


[Site "https://www.chess.com"]